[Event "44th BAN-ch OMICON 2018"]
[Site "Dhaka"]
[Date "2018.12.01"]
[Round "8"]
[White "Jabed Al Azad"]
[Black "Md, Sariatullah"]
[Result "1-0"]
[ECO "A40"]
[WhiteElo "2008"]
[BlackElo "2027"]
[Annotator "NA"]
[PlyCount "58"]
[EventDate "2018.11.24"]
[EventType "swiss"]
[EventCountry "BAN"]
[SourceTitle "playchess.com"]
[Source "ChessBase"]
[SourceQuality "1"]
[TimeControl "40/5400+30:1800+30"]

1. e4 {[%emt 1:30:30]} b6 {[%emt 1:30:30]} 2. d4 {[%emt 0:00:30]} Bb7 {[%emt 0:00:30]} 3. Bd3 {[%emt 0:00:30]} e6 {[%emt 0:00:30]} 4. c4 {[%emt 0:00:30]} Nf6 {[%emt 0:00:30]} 5. Qe2 {[%emt 0:00:30]} Nc6 {[%emt 0:00:30]} 6. Nf3 {[%emt 0:00:30]} Nb4 {[%emt 0:00:30]} 7. Nc3 {[%emt 0:00:30]} Nxd3+ {[%emt 0:00:30]} 8. Qxd3 {[%emt 0:00:30]} Bb4 {[%emt 0:00:30]} 9. Nd2 {[%emt 0:00:30]} c5 {[%emt 0:00:30]} 10. d5 {[%emt 0:00:30]} exd5 {[%emt 0:00:30]} 11. cxd5 {[%emt 0:00:30]} d6 {[%emt 0:00:30]} 12. O-O {[%emt 0:00:30]} O-O {[%emt 0:00:30]} 13. a3 {[%emt 0:00:30]} Bxc3 {[%emt 0:00:30]} 14. bxc3 {[%emt 0:00:30]} Nd7 {[%emt 0:00:30]} 15. f4 {[%emt 0:00:30]} f5 {[%emt 0:00:30]} 16. c4 {[%emt 0:00:30]} Qf6 {[%emt 0:00:30]} 17. Rb1 {[%emt 0:00:30]} fxe4 {[%emt 0:00:30]} ({Black should try} 17... Qd4+ 18. Qxd4 cxd4) 18. Nxe4 {[%emt 0:00:30]} Qf5 {[%emt 0:00:30]} 19. Bb2 {[%emt 0:00:30]} Rf7 {[%emt 0:00:30]} 20. Qf3 {[%emt 0:00:30]} Qg6 {[%emt 0:00:30]} 21. f5 {[%emt 0:00:30]} Qh6 {[%emt 0:00:30]} 22. Bc1 {[%emt 0:00:30]} g5 {[%emt 0:00:30]} 23. fxg6 {[%emt 0:00:30]} Rxf3 {[%emt 0:00:30]} 24. Bxh6 {[%emt 0:00:30]} Rxf1+ {[%emt 0:00:30]} 25. Rxf1 {[%emt 0:00:30]} hxg6 {[%emt 0:00:30]} 26. Nxd6 {[%emt 0:00:30]} Ba6 {[%emt 0:00:30]} 27. Rf7 {[%emt 0:00:30]} Ne5 {[%emt 0:00:30]} 28. Rg7+ {[%emt 0:00:30]} Kh8 {[%emt 0:00:30]} 29. Re7 {[%emt 0:00:30]} Ng4 {[%emt 0:00:30]} 1-0

[Event "44th BAN-ch OMICON 2018"]
[Site "Dhaka"]
[Date "2018.12.01"]
[Round "8"]
[White "Md. Jamal Uddin"]
[Black "Saiful Islam, Chowdhury"]
[Result "1-0"]
[ECO "A39"]
[WhiteElo "2001"]
[BlackElo "2110"]
[Annotator "NA"]
[PlyCount "137"]
[EventDate "2018.11.24"]
[EventType "swiss"]
[EventCountry "BAN"]
[SourceTitle "playchess.com"]
[Source "ChessBase"]
[SourceQuality "1"]
[TimeControl "40/5400+30:1800+30"]

1. Nf3 {[%emt 0:00:00]} Nf6 {[%emt 0:00:05]} 2. g3 {[%emt 0:00:15]} g6 {[%emt 0:00:16]} 3. Bg2 {[%emt 0:00:21]} Bg7 {[%emt 0:00:06]} 4. c4 {[%emt 0:00:42]} c5 {[%emt 0:01:47]} 5. O-O {[%emt 0:00:57]} O-O {[%emt 0:00:35]} 6. Nc3 {[%emt 0:01:15]} Nc6 {[%emt 0:00:19]} 7. d4 {[%emt 0:01:09]} cxd4 {[%emt 0:01:38]} 8. Nxd4 {[%emt 0:00:28]} Ng4 {[%emt 0:04:10]} 9. e3 {[%emt 0:01:57]} Nge5 {[%emt 0:03:44]} 10. Qe2 {[%emt 0:00:49] A39: Symmetrical English vs ...g6: 4 Bg2 Bg7 5 Nf3 Nf6 6 0-0 0-0 7 d4} (10. b3 d6 11. Bb2 Bg4 12. f3 Bd7 13. Qd2 a6 14. f4 Nxd4 15. exd4 Nc6 16. d5 Na5 17. Kh1 b5 18. cxb5 axb5 19. Ne2 Bxb2 20. Qxb2 b4 {1-0 (36) Meier,G (2663)-Fier,A (2625) Paris 2010}) 10... d6 {[%emt 0:08:44]} 11. h3 {[%emt 0:01:50]} Bd7 {[%emt 0:07:14]} 12. Bd2 $146 {[%emt 0:09:39]} ({Predecessor:} 12. Rd1 Qc8 13. Kh2 Nxd4 14. exd4 Nxc4 15. Qxe7 Re8 16. Qh4 Bc6 17. Ne4 Bxe4 18. Bxe4 {0-1 (29) Helms,S (2027)-Stutz,R (1997) Mecklenburg VP 2005}) 12... Nxd4 {[%emt 0:04:09]} 13. exd4 {[%emt 0:00:12]} Nc6 {[%emt 0:00:09]} 14. Bg5 {[%emt 0:12:12]} Re8 {[%emt 0:08:26]} 15. d5 {[%emt 0:04:53]} Nd4 {[%emt 0:01:31]} 16. Qd3 $1 {[%emt 0:00:26]} h6 {[%emt 0:10:17]} 17. Bxh6 {[%emt 0:04:25]} Bf5 {[%emt 0:04:06]} 18. Qd2 {[%emt 0:00:58]} Bh8 {[%emt 0:04:29]} 19. g4 {[%emt 0:02:53]} Bc8 {[%emt 0:04:18]} 20. Be3 {[%emt 0:01:24]} e5 {[%emt 0:00:47]} 21. dxe6 {[%emt 0:01:07]} Nxe6 {[%emt 0:00:33]} 22. Rad1 {[%emt 0:01:06]} Qa5 {[%emt 0:03:23]} 23. Qxd6 {[%emt 0:04:59]} Bxc3 {[%emt 0:08:31]} 24. bxc3 {[%emt 0:00:38]} Qxc3 {[%emt 0:00:23]} 25. c5 {[%emt 0:00:44]} a5 {[%emt 0:01:06]} 26. c6 {[%emt 0:01:24]} Ra6 {[%emt 0:01:18]} 27. Rc1 $18 {[%emt 0:00:22]} ({Don't take} 27. cxb7 $6 Bxb7 28. Qd7 Bc6 $18) 27... Qb2 {[%emt 0:04:21]} 28. Rb1 {[%emt 0:01:28]} Qxa2 {[%emt 0:03:00]} 29. Bb6 {[%emt 0:07:07]} bxc6 {[%emt 0:02:45]} 30. Bxc6 {[%emt 0:00:10]} Rf8 {[%emt 0:01:35]} 31. f4 {[%emt 0:07:22]} Qc2 {[%emt 0:05:59]} 32. Bb5 {[%emt 0:03:26]} Rxb6 {[%emt 0:02:47]} 33. Qxb6 {[%emt 0:00:14]} Nxf4 {[%emt 0:00:09]} 34. Qc6 {[%emt 0:04:14]} Nxh3+ {[%emt 0:00:30]} 35. Kh1 {[%emt 0:00:01]} Nf2+ {[%emt 0:01:34]} 36. Kg2 {[%emt 0:00:22]} Qxc6+ {[%emt 0:00:20]} 37. Bxc6 {[%emt 0:00:02]} Nxg4 {[%emt 0:00:08]} 38. Rfe1 {[%emt 0:01:06]} Be6 {[%emt 0:00:41]} 39. Ra1 {[%emt 0:00:18]} Rc8 {[%emt 0:00:23]} 40. Be4 {[%emt 0:00:00]} Rc5 {[%emt 0:00:00]} 41. Bxg6 {[%emt 0:01:22]} Rg5 {[%emt 0:03:30]} 42. Be4 {[%emt 0:02:20]} Bb3 {[%emt 0:05:34]} 43. Kf3 {[%emt 0:00:47]} Ne5+ {[%emt 0:05:39]} 44. Kf4 {[%emt 0:00:26]} Rh5 {[%emt 0:01:45]} 45. Bf5 {[%emt 0:02:04]} Nc4 {[%emt 0:02:21]} 46. Kg4 {[%emt 0:01:46]} Rh2 {[%emt 0:01:00]} 47. Bd3 {[%emt 0:04:02]} Nb2 {[%emt 0:02:02]} 48. Bb5 {[%emt 0:14:13]} a4 {[%emt 0:01:25]} 49. Re8+ {[%emt 0:00:29]} Kg7 {[%emt 0:00:21]} 50. Rb8 {[%emt 0:01:12]} Rd2 {[%emt 0:03:16]} 51. Kf4 {[%emt 0:01:02]} Rd4+ {[%emt 0:01:59]} 52. Ke5 {[%emt 0:00:56]} Rd5+ {[%emt 0:01:09]} 53. Ke4 {[%emt 0:00:35]} Nd1 {[%emt 0:01:47]} 54. Be8 {[%emt 0:02:26]} Nc3+ {[%emt 0:01:05]} 55. Kf4 {[%emt 0:00:52]} Nd1 {[%emt 0:00:47]} 56. Rb7 {[%emt 0:00:56]} Rd4+ {[%emt 0:01:28]} 57. Ke5 {[%emt 0:00:20]} Rd5+ {[%emt 0:01:17]} 58. Kf4 {[%emt 0:00:47]} Rd8 {[%emt 0:00:59]} 59. Bd7 {[%emt 0:02:31]} Kf6 {[%emt 0:00:38]} 60. Ke4 {[%emt 0:02:36]} Nc3+ {[%emt 0:01:16]} 61. Kd4 {[%emt 0:25:53]} Ne2+ {[%emt 0:01:45]} 62. Kc5 {[%emt 0:00:00]} Nc3 {[%emt 0:00:27]} 63. Rf1+ {[%emt 0:00:00]} Ke5 {[%emt 0:00:44]} 64. Re1+ {[%emt 0:00:00]} Ne4+ {[%emt 0:00:40]} 65. Kb4 {[%emt 0:00:00]} Bc2 {[%emt 0:00:36]} 66. Bc6 {[%emt 0:00:00]} f5 {[%emt 0:00:48]} 67. Rb5+ {[%emt 0:00:00]} Kd4 {[%emt 0:01:03]} 68. Rxf5 {[%emt 0:00:00]} Nd6 {[%emt 0:01:44]} 69. Rd5# {[%emt 0:00:00] Kxd5 [%clk 0:00:00]} 1-0

[Event "44th BAN-ch OMICON 2018"]
[Site "Dhaka"]
[Date "2018.12.01"]
[Round "8"]
[White "Zia, Tahsin Tajwar"]
[Black "Ahmed, Sk. Nasir"]
[Result "1/2-1/2"]
[ECO "D02"]
[WhiteElo "1803"]
[BlackElo "2119"]
[Annotator "NA"]
[PlyCount "86"]
[EventDate "2018.11.24"]
[EventType "swiss"]
[EventCountry "BAN"]
[SourceTitle "playchess.com"]
[Source "ChessBase"]
[SourceQuality "1"]
[TimeControl "40/5400+30:1800+30"]

1. Nf3 {[%emt 0:00:00]} Nf6 {[%emt 0:00:00]} 2. d4 {[%emt 0:00:23]} d5 {[%emt 0:00:03]} 3. Bf4 {[%emt 0:00:07]} e6 {[%emt 0:00:08]} 4. e3 {[%emt 0:00:04]} Bd6 {[%emt 0:00:06]} 5. Bg3 {[%emt 0:00:14]} O-O {[%emt 0:00:25]} 6. Nbd2 {[%emt 0:00:31]} c5 {[%emt 0:00:07] D02: 1 d4 d5 2 Nf3 sidelines, including 2...Nf6 3 g3 and 2...Nf6 3 Bf4} (6... b6 7. c3 Ba6 8. Bxa6 Nxa6 9. Ne5 Nb8 10. f4 c5 11. Bh4 Be7 12. O-O Nfd7 13. Bxe7 Qxe7 14. Rf3 Nxe5 15. fxe5 {1-0 (29) Aronian,L (2767)-Giri,A (2782) chess.com INT 2018}) 7. c3 {[%emt 0:00:04]} b6 {[%emt 0:01:15]} 8. Bd3 {[%emt 0:00:17]} Ba6 {[%emt 0:00:45]} 9. Bxa6 {[%emt 0:00:26]} Nxa6 {[%emt 0:00:03]} 10. Qe2 {[%emt 0:00:48]} Nb8 {[%emt 0:00:11]} 11. e4 {[%emt 0:01:10]} Be7 {[%emt 0:03:47]} 12. e5 $146 {[%emt 0:03:17]} ({Predecessor:} 12. exd5 exd5 13. O-O Nc6 14. Ne5 Rc8 {0-1 (56) Travadon,L (2334)-Blohberger,F (2427) Riga 2018}) 12... Nfd7 {[%emt 0:00:16]} 13. h4 {[%emt 0:00:51]} Nc6 {[%emt 0:00:19]} 14. a3 {[%emt 0:00:20]} a5 {[%emt 0:02:17]} 15. h5 {[%emt 0:05:07]} Rb8 {[%emt 0:05:40]} 16. Nf1 {[%emt 0:02:17]} b5 {[%emt 0:01:16]} 17. Ne3 {[%emt 0:01:22]} b4 {[%emt 0:01:10]} 18. h6 {[%emt 0:17:08] [#]} g6 $1 {[%emt 0:00:24]} 19. O-O {[%emt 0:08:51]} bxc3 {[%emt 0:05:29]} 20. bxc3 {[%emt 0:00:14] [#]} a4 {[%emt 0:03:31]} (20... Rb3 $1 $17 21. Rfc1 a4) 21. Rfd1 {[%emt 0:12:32]} (21. Nxd5 $1 $11 exd5 22. e6) 21... c4 {[%emt 0:14:13]} 22. Nc2 {[%emt 0:11:00]} Rb2 {[%emt 0:03:53]} 23. Bf4 {[%emt 0:09:47]} Na7 $17 {[%emt 0:17:20]} 24. Rdb1 {[%emt 0:10:43]} Qb6 {[%emt 0:08:54]} 25. Nd2 {[%emt 0:03:21]} Rb8 {[%emt 0:02:16]} 26. Nb4 {[%emt 0:00:57]} Rxb1+ {[%emt 0:02:52]} 27. Nxb1 {[%emt 0:00:21]} Nb5 {[%emt 0:01:14]} 28. Bc1 {[%emt 0:02:25]} Ra8 {[%emt 0:00:46]} 29. Qb2 {[%emt 0:00:45]} Nb8 {[%emt 0:01:02]} 30. g4 {[%emt 0:01:05]} Nc6 {[%emt 0:25:18]} 31. Be3 {[%emt 0:01:11]} f6 {[%emt 0:04:31]} 32. exf6 {[%emt 0:04:18]} Bxf6 {[%emt 0:00:14]} 33. Qe2 {[%emt 0:00:01]} Nd8 {[%emt 0:04:29]} 34. g5 {[%emt 0:02:23]} Be7 {[%emt 0:00:48]} 35. Bf4 {[%emt 0:00:49]} Ra7 {[%emt 0:02:26]} 36. Ra2 {[%emt 0:01:18]} Bf8 {[%emt 0:04:22]} 37. Be5 {[%emt 0:02:03]} Rf7 {[%emt 0:01:05]} 38. Bf6 {[%emt 0:00:01]} Qd6 {[%emt 0:02:13]} 39. Be5 {[%emt 0:00:42]} Qd7 {[%emt 0:00:30]} 40. f4 {[%emt 0:00:00]} Rf5 {[%emt 0:00:00]} 41. Nc2 {[%emt 0:02:12]} Rf7 {[%emt 0:13:38]} 42. Ne3 {[%emt 0:03:20]} Nd6 {[%emt 0:03:27]} 43. Nd2 {[%emt 0:07:38]} Nb5 {[%emt 0:07:10]} 1/2-1/2

[Event "44th BAN-ch OMICON 2018"]
[Site "Dhaka"]
[Date "2018.12.02"]
[Round "9"]
[White "Ikramul, Haq Siam"]
[Black "Ghosh, Chanchal Kumer"]
[Result "*"]
[ECO "B07"]
[WhiteElo "2100"]
[BlackElo "2069"]
[Annotator "NA RC"]
[PlyCount "43"]
[EventDate "2018.11.24"]
[EventType "swiss"]
[EventCountry "BAN"]
[SourceTitle "playchess.com"]
[Source "ChessBase"]
[SourceQuality "1"]
[TimeControl "40/5400+30:1800+30"]

1. d4 {[%emt 1:30:30]} Nf6 {[%emt 1:30:30]} 2. Bg5 {[%emt 0:00:30]} d6 {[%emt 0:00:30]} 3. Nc3 {[%emt 0:00:30]} c6 {[%emt 0:00:30]} 4. e4 {[%emt 0:00:30]} Qa5 {[%emt 0:00:30]} 5. Qd2 {[%emt 0:00:30] LiveBook: 15 Games} b5 {[%emt 0:00:30] B07: Pirc Defence: Miscellaneous Systems} 6. Bd3 {[%emt 0:00:30]} Nbd7 {[%emt 0:00:30]} 7. Nf3 {[%emt 0:00:30]} h6 {[%emt 0:00:30] Bh4Bb7 [%clk 0:00:00]} 8. O-O $2 $146 {[%emt 0:00:30]} (8. Bxf6 $14 {stays ahead.} exf6 9. O-O) ({Predecessor:} 8. Bh4 g5 9. Bg3 Nh5 10. O-O Bg7 11. Ne2 Qxd2 12. Nxd2 e5 13. c3 Nf4 14. Bxf4 gxf4 {1-0 (22) Evora Brondo,J (1949)-Camacho Hernandez,F (1819) Tenerife 2017}) 8... hxg5 {[%emt 0:00:30] Bg3 [%clk 0:00:00] Nh5 [%clk 0:00:00]} 9. Rfe1 {[%emt 0:00:30] Nxg3 [%clk 0:00:00] hxg3 [%clk 0:00:00]} e5 {[%emt 0:00:30]} 10. dxe5 {[%emt 0:00:30]} dxe5 {[%emt 0:00:30]} 11. a4 {[%emt 0:00:30]} b4 {[%emt 0:00:30] Nd1Bc5 [%clk 0:00:00]} 12. Qe3 {[%emt 0:00:30]} Qc5 {[%emt 0:00:30]} 13. Bc4 {[%emt 0:00:30] Kg7 [%clk 0:00:00]} (13. Nd1 $142) 13... Qe7 $19 {[%emt 0:00:30]} (13... Qxc4 $142 14. Nd1 Qxc2) 14. h4 {[%emt 0:00:30]} g4 {[%emt 0:00:30]} 15. a5 {[%emt 0:00:30]} bxc3 {[%emt 0:00:30]} 16. bxc3 {[%emt 0:00:30] Rxc3 [%clk 0:00:00]} Ba6 {[%emt 0:00:30]} 17. g3 {[%emt 0:00:30]} c5 {[%emt 0:00:30]} 18. Kh2 {[%emt 0:00:30]} Qd8 {[%emt 0:00:30] Qf3 [%clk 0:00:00]} 19. Qd4 {[%emt 0:00:30]} Bb5 {[%emt 0:00:30]} 20. Kg2 {[%emt 0:00:30]} Bc6 {[%emt 0:00:30]} 21. Qd2 {[%emt 0:00:30]} Bd5 {[%emt 0:00:30]} 22. Kf1 {[%emt 0:00:30]} *

[Event "44th BAN-ch OMICON 2018"]
[Site "Dhaka"]
[Date "2018.12.02"]
[Round "9"]
[White "Jabed Al Azad"]
[Black "Nayem, Haque"]
[Result "*"]
[ECO "C10"]
[WhiteElo "2008"]
[BlackElo "2074"]
[Annotator "NA"]
[PlyCount "57"]
[EventDate "2018.11.24"]
[EventType "swiss"]
[EventCountry "BAN"]
[SourceTitle "playchess.com"]
[Source "ChessBase"]
[SourceQuality "1"]
[TimeControl "40/5400+30:1800+30"]

{[%evp 9,48,56,32767,32767,97,67,32767,71,32767,32767,32767,32767,29,34,32767,33,32767,32767,32767,43,45,37,70,45,41,32767,32,32767,43,32767,39,32767,32767,32767,32767,12,14,7,58,8,17]} 1. e4 {[%emt 0:01:33]} e6 {[%emt 0:08:01]} 2. d4 {[%emt 0:00:15]} d5 {[%emt 1:22:59]} 3. Nc3 {[%emt 0:00:11]} dxe4 {[%emt 0:01:30]} 4. Nxe4 {[%emt 0:00:03]} Nf6 {[%emt 0:00:11]} 5. Nxf6+ {[%emt 0:00:49]} gxf6 {[%emt 0:03:04]} 6. Nf3 {[%emt 0:00:21]} c5 {[%emt 0:03:58] LiveBook: 4 Games} 7. c3 {[%emt 0:01:55] C10: French with 3 Nc3: Unusual Black 3rd moves and 3...dxe4} Nc6 {[%emt 0:00:49]} 8. Be3 {[%emt 0:00:20]} cxd4 {[%emt 0:00:59]} 9. Nxd4 {[%emt 0:00:33]} Nxd4 {[%emt 0:01:10]} 10. Qxd4 {[%emt 0:00:06]} Qxd4 {[%emt 0:01:13]} 11. Bxd4 {[%emt 0:00:02]} e5 {[%emt 0:00:23]} 12. Be3 $146 {[%emt 0:00:12]} ({Predecessor:} 12. Bb5+) 12... Bd7 {[%emt 0:00:27]} 13. O-O-O {[%emt 0:00:21]} Bc6 {[%emt 0:03:40]} 14. Rg1 {[%emt 0:00:50]} h5 {[%emt 0:03:46]} 15. Bc4 {[%emt 0:00:30]} Bh6 {[%emt 0:03:22]} 16. Bxh6 {[%emt 0:00:00]} Rxh6 {[%emt 0:00:38]} 17. Bd5 {[%emt 0:00:00]} Ke7 {[%emt 0:10:19]} 18. Bxc6 {[%emt 0:00:00]} bxc6 {[%emt 0:01:14]} 19. Rd3 {[%emt 0:00:00]} Rd8 {[%emt 0:05:00]} 20. Rxd8 {[%emt 0:00:00]} Kxd8 {[%emt 0:50:08]} 21. Kd2 {[%emt 0:00:00]} Rg6 {[%emt 0:00:12]} 22. Ke3 {[%emt 0:00:00]} Ke7 {[%emt 0:00:32]} 23. g3 {[%emt 0:00:00]} Rg8 {[%emt 0:00:37]} 24. Rd1 {[%emt 0:00:00]} h4 $11 {[%emt 0:00:32]} 25. Rd2 {[%emt 0:00:00]} Ke6 {[%emt 0:01:27]} 26. c4 {[%emt 0:06:00]} hxg3 {[%emt 0:03:35]} 27. hxg3 {[%emt 0:00:00]} Rb8 {[%emt 0:46:27]} 28. b3 {[%emt 0:00:00]} Ke7 {[%emt 0:00:51]} 29. Ke4 {[%emt 0:00:00]} *